bitfinex-derivatives/quotes_BTCF0:USTF0_20250713
["timestamp","ask_amount","ask_price","bid_price","bid_amount"]
[1752412930049,0.28744587,118390.0,118380.0,0.63958451]
[1752412930347,0.28744587,118390.0,118380.0,0.27878451]
[1752412930548,0.28844587,118390.0,118380.0,0.27878451]
[1752412931952,0.28844587,118390.0,118380.0,0.63958451]
[1752412932153,0.24298587,118390.0,118380.0,0.27878451]
[1752412932851,0.24298587,118390.0,118380.0,0.63958451]
[1752412933155,0.07412317,118390.0,118380.0,0.27878451]
[1752412934257,0.07412317,118390.0,118380.0,0.63958451]
[1752412934646,0.24298587,118390.0,118380.0,0.27878451]
[1752412934845,0.24298587,118390.0,118380.0,0.63958451]
[1752412935251,0.07412317,118390.0,118380.0,0.63958451]
[1752412935749,0.04393317,118390.0,118380.0,0.63958451]
[1752412937053,0.05976374,118390.0,118380.0,0.63958451]
[1752412938156,0.03633374,118390.0,118380.0,1.24271309]
[1752412938555,0.02050317,118390.0,118380.0,1.24271309]
[1752412949259,0.30455086,118390.0,118380.0,0.64854548]
[1752412949462,0.66535086,118390.0,118380.0,0.2154769]
[1752412951559,0.66535086,118390.0,118380.0,0.2468169]
[1752412951766,0.89027086,118390.0,118380.0,0.2714569]
[1752412952066,0.84481086,118390.0,118380.0,0.28893576]
[1752412953065,0.25909086,118390.0,118380.0,0.28893576]
[1752412953262,0.30455086,118390.0,118380.0,0.28893576]
[1752412953667,0.30455086,118390.0,118380.0,0.26429576]
[1752412955469,0.66535086,118390.0,118380.0,0.26429576]
[1752412956368,0.66535086,118390.0,118380.0,0.28884576]
[1752412956769,0.30455086,118390.0,118380.0,0.28884576]
[1752412962476,0.66535086,118390.0,118380.0,0.28884576]
[1752412962675,0.30455086,118390.0,118380.0,0.28884576]
[1752412962877,0.66535086,118390.0,118380.0,0.28884576]
[1752412963178,0.30455086,118390.0,118380.0,0.28884576]
[1752412964269,0.67594816,118390.0,118380.0,0.28884576]
[1752412965181,0.06003816,118390.0,118380.0,0.28884576]
[1752412965376,0.03660816,118390.0,118380.0,0.28884576]
[1752412965583,0.03660816,118390.0,118380.0,0.64964576]
[1752412967785,0.20547076,118390.0,118380.0,0.64964576]
[1752412968082,0.22830076,118390.0,118380.0,0.64964576]
[1752412968784,0.05943816,118390.0,118380.0,0.64964576]
[1752412969083,0.03660816,118390.0,118380.0,0.64964576]
[1752412971690,0.20547076,118390.0,118380.0,0.64964576]
[1752412972290,0.03660816,118390.0,118380.0,0.64964576]
[1752412972790,0.20547076,118390.0,118380.0,0.64964576]
[1752412974190,0.03660816,118390.0,118380.0,0.64964576]
[1752412975889,0.20547076,118390.0,118380.0,0.64964576]
[1752412976090,0.03660816,118390.0,118380.0,0.64964576]
[1752412979887,0.20547076,118390.0,118380.0,0.28884576]
[1752412980087,0.03660816,118390.0,118380.0,0.64964576]
[1752412981695,0.20547076,118390.0,118380.0,0.64964576]
[1752412982091,0.03660816,118390.0,118380.0,0.64964576]
[1752412982595,0.20547086,118390.0,118380.0,0.64964576]
[1752412982894,0.03660816,118390.0,118380.0,0.64964576]
[1752412987312,0.03660816,118390.0,118380.0,0.28884576]
[1752412987608,0.03560816,118390.0,118380.0,0.64964576]
[1752412988212,0.03460816,118390.0,118380.0,0.64964576]
[1752412990309,0.03360816,118390.0,118380.0,0.64964576]
[1752412990514,0.8930309,118400.0,118390.0,0.1999426]
[1752412990813,0.9428409,118400.0,118390.0,0.2713726]
[1752412991112,0.9006257,118400.0,118390.0,0.2713726]
[1752412991704,0.9016257,118400.0,118390.0,0.2713726]
[1752412992413,1.2624257,118400.0,118390.0,0.2713726]
[1752412992712,0.9016257,118400.0,118390.0,0.2713726]
[1752412995114,0.9046257,118400.0,118390.0,0.2723726]
[1752413000010,1.2654257,118400.0,118390.0,0.2723726]
[1752413000216,1.2654257,118400.0,118390.0,0.1698626]
[1752413000718,1.2654257,118400.0,118390.0,0.2171826]
[1752413001812,1.2654257,118400.0,118390.0,0.1698626]
[1752413002010,0.10803,118400.0,118390.0,0.2723726]
[1752413002214,0.69335,118400.0,118390.0,0.2723726]
[1752413002415,0.71280066,118400.0,118390.0,0.2723726]
[1752413003814,0.12748066,118400.0,118390.0,0.2723726]
[1752413004020,0.71280066,118400.0,118390.0,0.2723726]
[1752413005120,0.71276066,118400.0,118390.0,0.2723726]
[1752413005717,0.71276066,118400.0,118390.0,0.6331726]
[1752413006221,0.02345066,118400.0,118390.0,0.6331726]
[1752413007121,0.02345066,118400.0,118390.0,1.2184126]
[1752413010122,0.04692066,118400.0,118390.0,1.2184126]
[1752413011019,0.02345066,118400.0,118390.0,1.2184126]
[1752413013421,0.02345066,118400.0,118390.0,1.5120126]
[1752413015027,0.02345066,118400.0,118390.0,0.9267726]
[1752413016819,0.02145066,118400.0,118390.0,0.9257726]
[1752413017127,0.02045066,118400.0,118390.0,0.9257726]
[1752413019024,0.30665633,118400.0,118390.0,0.9257726]
[1752413019324,0.30665633,118400.0,118390.0,0.5408626]
[1752413019529,1.47669633,118400.0,118390.0,0.5408626]
[1752413019730,1.83749633,118400.0,118390.0,0.5408625]
[1752413020929,1.83749633,118400.0,118390.0,0.2472625]
[1752413022527,1.83749633,118400.0,118390.0,0.1688625]
[1752413022731,0.2704726,118390.0,118380.0,0.41482456]
[1752413022930,0.28992326,118390.0,118380.0,0.41462456]
[1752413023135,0.28992326,118390.0,118380.0,0.26500576]
[1752413023733,0.28992326,118390.0,118380.0,0.01747886]
[1752413023934,0.28992326,118390.0,118380.0,0.18635566]
[1752413024134,0.2704868,118380.0,118370.0,0.70119967]
[1752413024335,1.47579505,118380.0,118370.0,0.247531]
[1752413024734,1.47579505,118380.0,118370.0,0.25585741]
[1752413024929,1.47579505,118380.0,118370.0,0.17720741]
[1752413025129,1.47579505,118380.0,118370.0,0.25585741]
[1752413025629,1.47579505,118380.0,118370.0,0.25785741]
[1752413025834,1.47579505,118380.0,118370.0,0.25985741]
[1752413029230,1.47579505,118380.0,118370.0,0.251531]
[1752413041258,1.47579505,118380.0,118370.0,0.172881]
[1752413043557,1.83659505,118380.0,118370.0,0.172881]
[1752413044758,1.83659505,118380.0,118370.0,0.171881]
[1752413050362,1.83659505,118380.0,118370.0,0.272281]
[1752413055865,1.47579505,118380.0,118370.0,0.272281]
[1752413056066,1.83659505,118380.0,118370.0,0.272281]
[1752413058573,1.83659505,118380.0,118370.0,0.247991]
[1752413059073,1.47579505,118380.0,118370.0,0.247991]
[1752413060168,1.83659505,118380.0,118370.0,0.247991]
[1752413060569,1.47579505,118380.0,118370.0,0.247991]
[1752413061773,1.83659505,118380.0,118370.0,0.247991]
[1752413062073,1.47579505,118380.0,118370.0,0.247991]
[1752413062673,1.83659505,118380.0,118370.0,0.247991]
[1752413064375,1.47579505,118380.0,118370.0,0.247991]
[1752413064675,1.83659505,118380.0,118370.0,0.247991]
[1752413065174,1.47579505,118380.0,118370.0,0.247991]
[1752413065370,1.83659505,118380.0,118370.0,0.247991]
[1752413065874,1.47579505,118380.0,118370.0,0.247991]
[1752413067371,1.83659505,118380.0,118370.0,0.247991]
[1752413067576,1.47579505,118380.0,118370.0,0.247991]
[1752413068174,1.83659505,118380.0,118370.0,0.247991]
[1752413068472,1.47579505,118380.0,118370.0,0.247991]
[1752413068874,1.83659505,118380.0,118370.0,0.247991]
[1752413069080,1.47579505,118380.0,118370.0,0.247991]
[1752413069379,1.83659505,118380.0,118370.0,0.247991]
[1752413069575,1.47579505,118380.0,118370.0,0.247991]
[1752413069975,1.83659505,118380.0,118370.0,0.247991]
[1752413070180,1.83659505,118380.0,118370.0,0.248031]
[1752413070778,1.47579505,118380.0,118370.0,0.248031]
[1752413071779,1.83659505,118380.0,118370.0,0.248031]
[1752413071980,1.47579505,118380.0,118370.0,0.248031]
[1752413072772,1.47579505,118380.0,118370.0,0.272321]
[1752413072977,0.67415825,118380.0,118370.0,0.633121]
[1752413073180,0.08943825,118380.0,118370.0,0.633121]
[1752413073379,0.67415825,118380.0,118370.0,0.633121]
[1752413074682,0.03534825,118380.0,118370.0,0.926721]
[1752413074979,0.01589759,118380.0,118370.0,0.926721]
[1752413075174,9e-08,118380.0,118370.0,0.926721]
[1752413075377,0.67380737,118400.0,118390.0,0.2689427]
[1752413075378,0.70694737,118400.0,118390.0,0.2689427]
[1752413075574,0.14247845,118400.0,118390.0,0.6297427]
[1752413076182,0.14246603,118400.0,118390.0,0.6297427]
[1752413077689,0.14446603,118400.0,118390.0,0.6297427]
[1752413079288,0.12422737,118400.0,118390.0,0.6297427]
[1752413082891,0.07534737,118400.0,118390.0,0.9905427]
[1752413083992,0.07534737,118400.0,118390.0,1.5750627]
[1752413084291,0.06674737,118400.0,118390.0,1.5750627]
[1752413086494,0.06674737,118400.0,118390.0,1.8686627]
[1752413087900,0.28389577,118400.0,118390.0,0.5385727]
[1752413088104,0.66500136,118400.0,118390.0,0.4624627]
[1752413089199,0.66500136,118400.0,118380.0,0.0002]
[1752413089200,0.2710927,118390.0,118380.0,0.0002]
[1752413089400,1.3429863,118390.0,118380.0,0.1688753]
[1752413089593,1.36329523,118390.0,118380.0,0.1688753]
[1752413090196,1.36329523,118390.0,118380.0,0.1698753]
[1752413091001,1.36329523,118390.0,118380.0,0.18768056]
[1752413091199,0.96027653,118390.0,118380.0,0.26396056]
[1752413091599,1.32107653,118390.0,118380.0,0.28793056]
[1752413091803,0.96027653,118390.0,118380.0,0.28793056]
[1752413092804,1.32107653,118390.0,118380.0,0.28793056]
[1752413093197,0.96027653,118390.0,118380.0,0.28793056]
[1752413093394,0.65220163,118390.0,118380.0,0.28793056]
[1752413093597,0.87584163,118390.0,118380.0,0.28793056]
[1752413095205,1.23664163,118390.0,118380.0,0.28793056]
[1752413095407,0.87584163,118390.0,118380.0,0.28793056]
[1752413097011,1.23664163,118390.0,118380.0,0.28793056]
[1752413097606,0.70697893,118390.0,118380.0,0.28793056]
[1752413097814,0.70697893,118390.0,118380.0,0.64873056]
[1752413098611,0.70697893,118390.0,118380.0,0.28793056]
[1752413099213,0.87584143,118390.0,118380.0,0.28793056]
[1752413100417,1.23664143,118390.0,118380.0,0.28793056]
[1752413100611,0.87584143,118390.0,118380.0,0.28793056]
[1752413101012,0.87584143,118390.0,118380.0,0.64873056]
[1752413101817,0.70697893,118390.0,118380.0,0.28793056]
[1752413102116,0.70697893,118390.0,118380.0,0.64873056]
[1752413102306,0.70697893,118390.0,118380.0,0.28793056]
[1752413102824,0.12253893,118390.0,118380.0,0.64873056]
[1752413103012,0.60466893,118390.0,118380.0,0.64873056]
[1752413103318,0.04363893,118390.0,118380.0,0.64873056]
[1752413103710,0.07423893,118390.0,118380.0,0.64873056]
[1752413105216,0.29140153,118390.0,118380.0,0.64873056]
[1752413105414,0.29140153,118390.0,118380.0,0.26396056]
[1752413109714,0.29140153,118390.0,118380.0,0.28722056]
[1752413109915,0.12253893,118390.0,118380.0,0.64802056]
[1752413110608,0.11962893,118390.0,118380.0,0.64802056]
[1752413121629,0.11962893,118390.0,118380.0,0.28722056]
[1752413122734,0.11962893,118390.0,118380.0,0.64802056]
[1752413123131,0.11962893,118390.0,118380.0,0.28722056]
[1752413124534,0.28849153,118390.0,118380.0,0.28722056]
[1752413125736,0.28849153,118390.0,118380.0,0.64802056]
[1752413129338,0.28849153,118390.0,118380.0,0.28722056]
[1752413130142,0.28849153,118390.0,118380.0,0.64802056]
[1752413130342,0.28849153,118390.0,118380.0,0.28722056]
[1752413132037,0.28849153,118390.0,118380.0,0.26396056]
[1752413132236,0.28849153,118390.0,118380.0,0.2461553]
[1752413132641,0.64929153,118390.0,118380.0,0.2461553]
[1752413134146,0.64929153,118390.0,118380.0,0.1698753]
[1752413136952,0.64929153,118390.0,118380.0,0.2024153]
[1752413137149,0.64929153,118390.0,118380.0,0.2515453]
[1752413137543,0.28849153,118390.0,118380.0,0.2756553]
[1752413137844,0.70354893,118390.0,118380.0,0.29353668]
[1752413138043,0.87241153,118390.0,118380.0,0.29353668]
[1752413140445,0.87237153,118390.0,118380.0,0.29353668]
[1752413142351,0.87237153,118390.0,118380.0,0.65433668]
[1752413144049,0.87237153,118390.0,118380.0,0.29353668]
[1752413146554,0.70350893,118390.0,118380.0,0.65433668]
[1752413147158,0.87237153,118390.0,118380.0,0.29353668]
[1752413156361,0.87237153,118390.0,118380.0,0.26942668]
[1752413158067,0.87237153,118390.0,118380.0,0.29353668]
[1752413162064,0.87237153,118390.0,118380.0,0.26942668]
[1752413162266,0.87237153,118390.0,118380.0,0.18775668]
[1752413164471,1.23317153,118390.0,118380.0,0.18775668]
[1752413164865,1.23317153,118390.0,118380.0,0.18775828]
[1752413166067,1.23317153,118390.0,118380.0,0.21985828]
[1752413166266,1.23317153,118390.0,118380.0,0.26898828]
[1752413166267,0.87237153,118390.0,118380.0,0.26898828]
[1752413175382,1.23317153,118390.0,118380.0,0.26898828]
[1752413176084,1.23317153,118390.0,118380.0,0.18775828]
[1752413176379,1.23317153,118390.0,118380.0,0.1698769]
[1752413178386,1.17517153,118390.0,118380.0,0.1698769]
[1752413180488,1.19989153,118390.0,118380.0,0.1698769]
[1752413188290,1.19989153,118390.0,118380.0,0.001]
[1752413188595,0.2691369,118380.0,118370.0,0.211348]
[1752413188788,0.6299369,118380.0,118370.0,0.211148]
[1752413189992,0.6299369,118380.0,118370.0,0.213148]
[1752413191090,0.6299369,118380.0,118370.0,0.113148]
[1752413191391,0.6299369,118380.0,118370.0,0.115148]
[1752413193292,0.69796024,118380.0,118370.0,0.115148]
[1752413196297,0.71792768,118380.0,118370.0,0.115148]
[1752413199093,0.28910434,118380.0,118370.0,0.219658]
[1752413199397,0.87214434,118380.0,118370.0,0.219658]
[1752413199999,1.23294434,118380.0,118370.0,0.219658]
[1752413200396,0.87214434,118380.0,118370.0,0.219658]
[1752413201102,1.23294434,118380.0,118370.0,0.219658]
[1752413204105,0.87214434,118380.0,118370.0,0.219658]
[1752413208805,0.28910434,118380.0,118370.0,0.219658]
[1752413209003,0.87202434,118380.0,118370.0,0.219658]
[1752413209203,1.23282434,118380.0,118370.0,0.219658]
[1752413210109,0.87202434,118380.0,118370.0,0.219658]
[1752413210310,1.23282434,118380.0,118370.0,0.219658]
[1752413210511,0.87202434,118380.0,118370.0,0.219658]
[1752413212714,1.23282434,118380.0,118370.0,0.219658]
[1752413212916,0.87202434,118380.0,118370.0,0.219658]
[1752413213215,1.23282434,118380.0,118370.0,0.219658]
[1752413214813,0.87202434,118380.0,118370.0,0.219658]
[1752413215514,1.23282434,118380.0,118370.0,0.219658]
[1752413217317,0.87202434,118380.0,118370.0,0.219658]
[1752413217718,1.23282434,118380.0,118370.0,0.219658]
[1752413218024,0.87202434,118380.0,118370.0,0.219658]
[1752413218219,1.23282434,118380.0,118370.0,0.219658]
[1752413218815,0.87202434,118380.0,118370.0,0.219658]
[1752413219014,1.23282434,118380.0,118370.0,0.219658]
[1752413219219,0.87202434,118380.0,118370.0,0.219658]
[1752413219415,1.23282434,118380.0,118370.0,0.219658]
[1752413220324,0.87202434,118380.0,118370.0,0.219658]
[1752413220721,1.23282434,118380.0,118370.0,0.219658]
[1752413225827,0.87202434,118380.0,118370.0,0.219658]
[1752413226030,1.23282434,118380.0,118370.0,0.219658]
[1752413226733,1.23282434,118380.0,118370.0,0.195838]
[1752413227130,0.87202434,118380.0,118370.0,0.195838]
[1752413229334,0.87202434,118380.0,118370.0,0.219488]
[1752413230739,1.23282434,118380.0,118370.0,0.219488]
[1752413231936,0.87202434,118380.0,118370.0,0.219488]
[1752413232134,1.23282434,118380.0,118370.0,0.219488]
[1752413233540,0.87202434,118380.0,118370.0,0.219488]
[1752413233939,1.23282434,118380.0,118370.0,0.219488]
[1752413234242,0.87202434,118380.0,118370.0,0.219488]
[1752413234835,1.23282434,118380.0,118370.0,0.219488]
[1752413235838,1.23226434,118380.0,118370.0,0.219488]
[1752413237543,0.87146434,118380.0,118370.0,0.219488]
[1752413237841,1.23226434,118380.0,118370.0,0.219488]
[1752413240243,0.87146434,118380.0,118370.0,0.219488]
[1752413240937,1.23226434,118380.0,118370.0,0.219488]
[1752413241143,1.2122969,118380.0,118370.0,0.219488]
[1752413241342,1.23223302,118380.0,118370.0,0.219488]
[1752413241843,1.23223302,118380.0,118370.0,0.195838]
[1752413242639,1.23223302,118380.0,118370.0,0.115148]
[1752413242846,1.23223302,118380.0,118370.0,0.1728912]
[1752413243746,0.87127302,118380.0,118370.0,0.2181812]
[1752413243938,1.23207302,118380.0,118370.0,0.2730812]
[1752413244242,0.87127302,118380.0,118370.0,0.2730812]
[1752413244943,0.64987302,118380.0,118370.0,0.2730812]
[1752413245143,0.94050279,118380.0,118370.0,0.2730812]
[1752413247739,1.30130279,118380.0,118370.0,0.2730812]
[1752413247944,0.94050279,118380.0,118370.0,0.2730812]
[1752413248139,1.30130279,118380.0,118370.0,0.2730812]
[1752413248636,0.94050279,118380.0,118370.0,0.2730812]
[1752413249146,1.30130279,118380.0,118370.0,0.2730812]
[1752413249346,0.94050279,118380.0,118370.0,0.2730812]
[1752413250345,1.30130279,118380.0,118370.0,0.2730812]
[1752413250640,0.94050279,118380.0,118370.0,0.1728912]
[1752413250844,1.30130279,118380.0,118370.0,0.0938912]
[1752413254447,1.30130279,118380.0,118370.0,0.1628312]
[1752413255248,0.94050279,118380.0,118370.0,0.1628312]
[1752413255549,1.30130279,118380.0,118370.0,0.1628312]
[1752413257148,0.94050279,118380.0,118370.0,0.1628312]
[1752413257451,1.30130279,118380.0,118370.0,0.1628312]
[1752413257647,0.94050279,118380.0,118370.0,0.1628312]
[1752413257950,1.30130279,118380.0,118370.0,0.1628312]
[1752413259343,1.30130279,118380.0,118370.0,0.1952712]
[1752413259749,0.94050279,118380.0,118370.0,0.1952712]
[1752413259948,1.31723012,118380.0,118370.0,0.1952712]
[1752413260150,0.95643012,118380.0,118370.0,0.1952712]
[1752413262152,1.31723012,118380.0,118370.0,0.1952712]
[1752413263853,0.95643012,118380.0,118370.0,0.1952712]
[1752413264055,1.31723012,118380.0,118370.0,0.1952712]
[1752413264255,0.95643012,118380.0,118370.0,0.1952712]
[1752413264856,1.31723012,118380.0,118370.0,0.1952712]
[1752413265960,1.31723012,118380.0,118370.0,0.1716212]
[1752413266149,1.31723012,118380.0,118370.0,0.0938912]
[1752413268050,0.2717111,118370.0,118360.0,0.00192969]
[1752413268253,0.65244722,118370.0,118360.0,0.00172969]
[1752413268452,0.2017354,118360.0,118350.0,0.0002]
[1752413268652,0.2717397,118350.0,118340.0,0.31693159]
[1752413268858,0.29167582,118350.0,118340.0,0.33958159]
[1752413269060,0.29167582,118350.0,118340.0,0.33034919]
[1752413269456,0.29167582,118350.0,118340.0,0.36278919]
[1752413271156,0.29267582,118350.0,118340.0,0.36478919]
[1752413271860,0.29267582,118350.0,118340.0,0.72558919]
[1752413272061,0.29267582,118350.0,118340.0,0.36478919]
[1752413272665,0.07849612,118350.0,118340.0,0.72558919]
[1752413272854,0.29267582,118350.0,118340.0,0.72758919]
[1752413273154,0.87431582,118350.0,118340.0,0.36678919]
[1752413274360,0.87431582,118350.0,118340.0,0.72758919]
[1752413274859,0.87431582,118350.0,118340.0,0.36678919]
[1752413276062,0.87431582,118350.0,118340.0,0.72758919]
[1752413276461,0.87431582,118350.0,118340.0,0.36678919]
[1752413279063,0.87431582,118350.0,118340.0,0.72758919]
[1752413279266,0.87431582,118350.0,118340.0,0.36678919]
[1752413282666,0.8543797,118350.0,118340.0,0.36678919]
[1752413282963,0.87426018,118350.0,118340.0,0.26585919]
[1752413283968,0.87426018,118350.0,118340.0,0.2573909]
[1752413284867,0.87426018,118350.0,118340.0,0.2151582]
[1752413285167,1.23506018,118350.0,118340.0,0.2151582]
[1752413291669,1.23506018,118350.0,118340.0,0.004]
[1752413292170,1.23506018,118350.0,118340.0,0.172934]
[1752413292772,1.23506018,118350.0,118340.0,0.004]
[1752413293072,1.23506018,118350.0,118340.0,0.172934]
[1752413295172,1.23506346,118350.0,118340.0,0.172934]
[1752413296073,0.87426346,118350.0,118340.0,0.172934]
[1752413296260,1.23506346,118350.0,118340.0,0.172934]
[1752413296670,0.87426346,118350.0,118340.0,0.172934]
[1752413297172,1.23506346,118350.0,118340.0,0.172934]
[1752413297373,0.87390346,118350.0,118340.0,0.29475338]
[1752413297673,0.63495376,118350.0,118340.0,0.65555338]
[1752413297870,0.02088376,118350.0,118340.0,0.65555338]
[1752413300070,0.02088376,118350.0,118340.0,2.23699337]
[1752413300071,0.001,118350.0,118340.0,2.23699337]
[1752413300272,0.001,118350.0,118340.0,1.98699337]
[1752413300674,0.0209214,118350.0,118340.0,1.98699337]
[1752413300976,0.001,118350.0,118340.0,1.98699337]
[1752413301875,0.002,118370.0,118360.0,0.2733154]
[1752413302070,0.61148019,118400.0,118370.0,0.10441]
[1752413302071,0.49138614,118400.0,118370.0,0.10441]
[1752413302275,0.2898875,118400.0,118390.0,0.6340726]
[1752413302476,0.2898875,118400.0,118390.0,0.2732726]
[1752413302673,0.1210391,118400.0,118390.0,0.2732726]
[1752413302976,0.1210391,118400.0,118390.0,0.6340726]
[1752413303478,0.2898875,118400.0,118390.0,0.6340726]
[1752413303678,0.0199091,118400.0,118390.0,0.6340726]
[1752413303976,0.0249091,118400.0,118390.0,0.6340726]
[1752413304180,0.0279091,118400.0,118390.0,0.6340726]
[1752413304772,0.1967575,118400.0,118390.0,0.6340726]
[1752413305179,0.1957575,118400.0,118390.0,0.6350726]
[1752413305772,0.1957575,118400.0,118390.0,0.6434871]
[1752413305978,0.1927575,118400.0,118390.0,0.6434871]
[1752413306282,0.1947575,118400.0,118390.0,0.6434871]
[1752413306685,0.1907575,118400.0,118390.0,0.6424871]
[1752413306979,0.1927575,118400.0,118390.0,0.6424871]
[1752413307180,0.0239091,118400.0,118390.0,0.6424871]
[1752413308281,0.0239091,118400.0,118390.0,0.71030305]
[1752413308482,0.1927575,118400.0,118390.0,0.71030305]
[1752413308682,0.2938875,118400.0,118390.0,0.71030305]
[1752413308881,0.2475475,118400.0,118390.0,0.71030305]
[1752413310185,0.2276384,118400.0,118390.0,0.71030305]
[1752413311779,0.2040284,118400.0,118390.0,0.71030305]
[1752413314386,0.2040284,118400.0,118390.0,0.34950305]
[1752413315789,0.1040284,118400.0,118390.0,0.71030305]
[1752413320392,0.1040284,118400.0,118390.0,0.34950305]
[1752413321295,0.03118,118400.0,118390.0,0.71030305]
[1752413321696,0.2000283,118400.0,118390.0,0.71030305]
[1752413324196,0.24474334,118400.0,118390.0,0.71030305]
[1752413325290,0.2690526,118390.0,118380.0,0.0002]
[1752413325594,0.2690669,118380.0,118370.0,0.0002]
[1752413325797,0.2690811,118370.0,118360.0,0.35895659]
[1752413325990,0.2690811,118370.0,118360.0,0.35875659]
[1752413326391,0.2690811,118370.0,118360.0,0.36718418]
[1752413326998,0.2690811,118370.0,118360.0,0.37118418]
[1752413327503,0.2690811,118370.0,118360.0,0.32895798]
[1752413328297,0.2690811,118370.0,118360.0,0.33095798]
[1752413331398,0.28899836,118370.0,118360.0,0.33095798]
[1752413335702,0.28899836,118370.0,118360.0,0.32253039]
[1752413336203,0.28899836,118370.0,118360.0,0.28030559]
[1752413339706,0.28899836,118370.0,118360.0,0.28871863]
[1752413340605,0.28899836,118370.0,118360.0,0.28030559]
[1752413341708,0.28899836,118370.0,118360.0,0.27830559]
[1752413342410,0.64979836,118370.0,118360.0,0.00568969]
[1752413343006,0.64979836,118370.0,118360.0,0.00268969]
[1752413345211,0.64979836,118370.0,118360.0,0.05181969]
[1752413347209,0.64979836,118370.0,118360.0,0.07650969]
[1752413347907,1.23019836,118370.0,118360.0,0.10906969]
[1752413350714,0.79918836,118370.0,118360.0,0.65613911]
[1752413351419,0.21882836,118370.0,118360.0,0.65613911]
[1752413351611,0.79918836,118370.0,118360.0,0.65613911]
[1752413352810,0.82219836,118370.0,118360.0,0.65613911]
[1752413359120,0.82207836,118370.0,118360.0,0.65613911]
[1752413362223,0.76904836,118370.0,118360.0,0.65613911]
[1752413362424,0.76900836,118370.0,118360.0,0.65613911]
[1752413364724,0.18880836,118370.0,118360.0,0.65613911]
[1752413366825,0.18880836,118370.0,118360.0,1.23625911]
[1752413370821,0.24302836,118370.0,118360.0,0.65613911]
[1752413371020,0.29101836,118370.0,118360.0,0.65613911]
[1752413371222,0.29101836,118370.0,118360.0,1.23621911]
[1752413372527,0.29101836,118370.0,118360.0,1.23617911]
[1752413373026,0.24302836,118370.0,118360.0,1.23617911]
[1752413375725,0.01991726,118370.0,118360.0,1.23617911]
[1752413377625,0.01991726,118370.0,118360.0,1.69874711]
[1752413378523,0.87317356,118390.0,118380.0,0.2236069]
[1752413378724,0.92346577,118390.0,118380.0,0.6297669]
[1752413379731,0.92846577,118390.0,118380.0,0.6297669]
[1752413380328,0.02506221,118390.0,118380.0,1.2097269]
[1752413380535,0.02306221,118390.0,118380.0,1.58834556]
[1752413380758,0.02206221,118390.0,118380.0,1.58834556]
[1752413380929,0.02206221,118390.0,118380.0,1.07701882]
[1752413381131,0.02206221,118390.0,118380.0,1.65693882]
[1752413381332,0.02206221,118390.0,118380.0,1.58830556]
[1752413382637,0.02106221,118390.0,118380.0,1.58830556]
[1752413383040,0.02006221,118390.0,118380.0,1.58830556]
[1752413383338,0.02006221,118390.0,118380.0,1.58930556]
[1752413385041,0.02006221,118390.0,118380.0,1.58918556]
[1752413385338,0.02006221,118390.0,118380.0,1.88278556]
[1752413386042,0.02006221,118390.0,118380.0,1.30298556]
[1752413386244,0.18892481,118390.0,118380.0,1.94890058]
[1752413387242,0.24321481,118390.0,118380.0,1.94890058]
[1752413388747,0.24321481,118390.0,118380.0,1.58810058]
[1752413391347,0.24321481,118390.0,118380.0,1.29450058]
[1752413392148,0.21915481,118390.0,118380.0,1.29450058]
[1752413393250,0.24321481,118390.0,118380.0,1.29450058]
[1752413396047,0.21915481,118390.0,118380.0,1.29450058]
[1752413396857,1.23192481,118390.0,118380.0,0.2699668]
[1752413397155,0.87112481,118390.0,118380.0,0.2699668]
[1752413398155,1.23192481,118390.0,118380.0,0.2699668]
[1752413400257,0.87112481,118390.0,118380.0,0.2699668]
[1752413400446,1.23192481,118390.0,118380.0,0.2699668]
[1752413401258,1.23192481,118390.0,118380.0,0.10109]
[1752413401458,1.23192481,118390.0,118380.0,0.2699668]
[1752413405571,0.87100481,118390.0,118380.0,0.2699668]
[1752413411170,1.23180481,118390.0,118380.0,0.001]
[1752413411374,1.23180481,118390.0,118380.0,0.1698768]
[1752413411767,1.23180481,118390.0,118380.0,0.001]
[1752413412072,1.23180481,118390.0,118380.0,0.1698768]
[1752413413369,1.23180481,118390.0,118380.0,0.2734968]
[1752413413667,0.29152471,118390.0,118380.0,0.2734968]
[1752413414071,0.87092471,118390.0,118380.0,0.2734968]
[1752413415166,0.12266221,118390.0,118380.0,0.2734968]
[1752413415372,0.65371221,118390.0,118380.0,0.2734968]
[1752413415768,0.62965221,118390.0,118380.0,0.2734968]
[1752413416674,0.62965221,118390.0,118380.0,0.6342968]
[1752413416868,0.02006221,118390.0,118380.0,0.6342968]
[1752413419073,0.02006221,118390.0,118380.0,1.2136168]
[1752413419374,0.05088221,118390.0,118380.0,1.2136168]
[1752413419575,0.05088221,118390.0,118380.0,1.2146168]
[1752413420474,0.05088221,118390.0,118380.0,1.2136168]
[1752413420771,0.02006221,118390.0,118380.0,1.2156168]
[1752413422277,0.02006221,118390.0,118380.0,1.28297019]
[1752413428772,1e-08,118390.0,118380.0,1.46943797]
[1752413428967,0.01581236,118400.0,118390.0,0.1996926]
[1752413429179,0.01581236,118400.0,118390.0,0.6332826]
[1752413429880,0.004,118410.0,118400.0,0.1996783]
[1752413430080,0.004,118410.0,118400.0,1.23037299]
[1752413431780,0.007,118410.0,118400.0,1.23037299]
[1752413438178,0.1298701,118420.0,118410.0,0.2225041]
[1752413438379,0.1766601,118420.0,118410.0,0.2716541]
[1752413438573,0.03082,118420.0,118410.0,0.2716541]
[1752413439080,0.03082,118420.0,118410.0,0.28019234]
[1752413439880,1.2634036,118430.0,118420.0,0.1989998]
[1752413440181,1.2634036,118430.0,118420.0,0.2716398]
[1752413440380,0.8934787,118430.0,118420.0,0.2706398]
[1752413440772,0.2918763,118430.0,118420.0,0.2706398]
[1752413441081,0.2918763,118430.0,118420.0,0.2686398]
[1752413441277,0.0550407,118430.0,118420.0,0.2686398]
[1752413441477,0.2268463,118430.0,118420.0,0.28633384]
[1752413441680,0.2268463,118430.0,118420.0,0.64713384]
[1752413442576,0.2500763,118430.0,118420.0,0.64713384]
[1752413442771,0.2968663,118430.0,118420.0,0.64713384]
[1752413443375,0.2968663,118430.0,118420.0,0.28633384]
[1752413444382,0.2968663,118430.0,118420.0,0.64713384]
[1752413444579,0.2968663,118430.0,118420.0,0.28633384]
[1752413444774,0.2968663,118430.0,118420.0,0.64713384]
[1752413444983,0.2968663,118430.0,118420.0,0.28633384]
[1752413445384,0.2968663,118430.0,118420.0,0.64713384]
[1752413445583,0.2968663,118430.0,118420.0,0.28633384]
[1752413448185,0.2968663,118430.0,118420.0,0.64713384]
[1752413448386,0.2968663,118430.0,118420.0,0.28633384]
[1752413449085,0.2968663,118430.0,118420.0,0.64713384]
[1752413449484,0.2968663,118430.0,118420.0,0.28633384]
[1752413453789,0.2500763,118430.0,118420.0,0.28633384]
[1752413454090,0.1753763,118430.0,118420.0,0.28633384]
[1752413454290,0.1986063,118430.0,118420.0,0.28633384]
[1752413456293,0.05631,118430.0,118420.0,0.28633384]
[1752413456592,0.2251156,118430.0,118420.0,0.28633384]